bitfinex/quotes_ETHUSD_20240718
["timestamp","ask_amount","ask_price","bid_price","bid_amount"]
[1721308682377,0.1407207,3493.2,3492.1,2.3631]
[1721308682378,3.0034707,3493.2,3492.1,2.3631]
[1721308682550,0.1407207,3493.2,3492.2,3.41351]
[1721308682742,0.1407207,3493.2,3492.4,2.86333]
[1721308682944,0.1407207,3493.2,3492.5,0.55]
[1721308683142,0.1407207,3493.2,3492.5,0.58295934]
[1721308683344,0.1407207,3493.2,3492.5,0.03295934]
[1721308683539,0.1407207,3493.2,3492.4,2.86335]
[1721308683870,0.1407207,3493.2,3492.6,0.03291926]
[1721308685357,0.1407207,3493.2,3492.7,2.86311]
[1721308685576,0.1407207,3493.2,3492.7,2.89598919]
[1721308685772,0.1407207,3493.2,3492.9,2.8629]
[1721308686281,0.1407207,3493.2,3493.0,0.03275897]
[1721308686882,0.1407207,3493.2,3492.5,6.41327]
[1721308687078,0.1407207,3493.2,3493.1,0.0327189]
[1721308687296,0.1407207,3493.2,3492.7,2.86305]
[1721308687578,0.1307207,3493.2,3492.8,6.41303]
[1721308687787,0.1307207,3493.2,3492.8,6.44572613]
[1721308687976,0.1307207,3493.2,3492.9,2.86293]
[1721308688284,0.1307207,3493.2,3492.9,2.89558606]
[1721308688654,0.1307207,3493.2,3493.0,2.92009938]
[1721308688855,0.1307207,3493.2,3493.0,5.37989938]
[1721308689054,0.1307207,3493.2,3493.1,0.03257593]
[1721308689452,0.1307207,3493.2,3493.0,5.32265]
[1721308689657,0.1307207,3493.2,3493.1,0.03552715]
[1721308690098,0.1307207,3493.2,3493.1,0.03257827]
[1721308690402,0.1307207,3493.2,3492.7,3.0]
[1721308690613,0.1307207,3493.2,3493.1,0.03257827]
[1721308690831,0.1307207,3493.2,3492.7,3.0]
[1721308691129,0.1307207,3493.2,3493.1,0.03257827]
[1721308691289,0.1307207,3493.2,3492.7,3.0]
[1721308691626,0.1307207,3493.2,3492.8,0.03267504]
[1721308691931,0.1307207,3493.2,3493.0,2.86279]
[1721308691932,6.3154682,3493.2,3493.0,2.86279]
[1721308692331,6.3154682,3493.2,3492.9,2.89831509]
[1721308692515,6.3154682,3493.2,3493.1,0.03532767]
[1721308692692,6.3154682,3493.2,3493.0,6.41285]
[1721308693036,6.3154682,3493.2,3493.1,0.03530466]
[1721308693530,6.3154682,3493.2,3492.6,3.0]
[1721308693836,6.3154682,3493.2,3493.1,0.03530466]
[1721308694019,6.3154682,3493.2,3492.8,5.86301]
[1721308694221,6.3154682,3493.2,3493.1,0.03532767]
[1721308694525,6.3154682,3493.2,3492.8,5.86301]
[1721308694686,6.3154682,3493.2,3493.1,0.03532767]
[1721308694894,6.3154682,3493.2,3492.8,5.86301]
[1721308695394,6.3154682,3493.2,3492.9,0.03541509]
[1721308696326,6.3154682,3493.2,3492.8,3.0]
[1721308696491,6.3154682,3493.2,3493.0,0.03536371]
[1721308696698,6.3154682,3493.2,3492.9,0.03540742]
[1721308696928,6.3154682,3493.2,3493.1,0.03531744]
[1721308697240,6.3154682,3493.2,3493.1,0.03532]
[1721308697448,6.3154682,3493.2,3492.8,3.0]
[1721308697653,6.3154682,3493.2,3493.1,0.03531744]
[1721308697857,6.3154682,3493.2,3492.8,3.0]
[1721308698167,6.3154682,3493.2,3493.1,0.03531744]
[1721308698457,6.3154682,3493.2,3492.9,0.03540486]
[1721308698671,6.3154682,3493.2,3493.1,0.03531744]
[1721308698953,6.3154682,3493.2,3493.0,0.03532536]
[1721308699137,6.3154682,3493.2,3493.1,0.03528165]
[1721308699450,6.3154682,3493.2,3492.7,0.55]
[1721308699654,6.3154682,3493.2,3493.1,0.03234151]
[1721308699956,6.3154682,3493.2,3492.6,0.55]
[1721308700130,6.3154682,3493.2,3493.1,0.03238135]
[1721308700533,6.3154682,3493.2,3492.6,0.55]
[1721308701247,6.3154682,3493.2,3492.7,0.03549997]
[1721308701831,6.3154682,3493.2,3492.6,2.86314]
[1721308702157,6.3154682,3493.2,3492.4,2.86335]
[1721308702158,6.3154682,3493.2,3492.8,0.03250156]
[1721308702316,6.3154682,3493.2,3492.7,0.03254164]
[1721308703123,6.3154682,3493.2,3492.5,5.86327]
[1721308703517,6.3154682,3493.2,3492.6,0.03258171]
[1721308704460,6.3154682,3493.2,3492.5,0.55]
[1721308704757,6.3154682,3493.2,3492.7,0.03254164]
[1721308704962,6.3154682,3493.2,3492.6,0.03260752]
[1721308705127,6.3154682,3493.2,3492.2,2.8635]
[1721308705321,6.3154682,3493.2,3492.3,3.58272777]
[1721308705846,2.86279,3493.1,3492.3,3.03272777]
[1721308706130,9.1781782,3493.2,3492.4,3.0]
[1721308706332,9.1781782,3493.2,3492.5,0.0326476]
[1721308706563,2.86293,3493.0,3492.1,3.0]
[1721308706722,2.86315,3492.7,3491.6,2.86398]
[1721308706923,2.863,3492.9,3491.8,2.86383]
[1721308707226,2.86311,3492.7,3491.9,0.03293968]
[1721308707543,2.86311,3492.7,3491.6,2.86398]
[1721308707544,2.86311,3492.7,3492.0,0.03290662]
[1721308707748,2.86311,3492.7,3491.6,2.86396]
[1721308707928,2.863,3492.9,3492.1,0.03286653]
[1721308708123,2.863,3492.9,3491.8,2.86381]
[1721308708325,6.3154682,3493.2,3491.9,3.09021387]
[1721308708592,6.3154682,3493.2,3492.0,3.0]
[1721308708859,6.3154682,3493.2,3492.1,2.86354]
[1721308709067,6.3154682,3493.2,3492.2,0.55]
[1721308709361,9.1682182,3493.2,3492.2,0.58282644]
[1721308709772,6.3054682,3493.2,3492.2,3.44628644]
[1721308709979,6.3054682,3493.2,3492.3,2.86342]
[1721308710179,6.3054682,3493.2,3492.4,0.60725826]
[1721308710476,6.3054682,3493.2,3492.5,2.8632]
[1721308710690,6.3054682,3493.2,3492.4,0.64000454]
[1721308710691,6.3054682,3493.2,3492.4,0.58274628]
[1721308710877,6.3054682,3493.2,3492.6,0.03271065]
[1721308711042,6.3054682,3493.2,3492.5,2.89597073]
[1721308711383,6.3054682,3493.2,3492.6,0.03271065]
[1721308711587,6.3054682,3493.2,3492.4,0.55]
[1721308711890,6.3054682,3493.2,3492.7,0.0355946]
[1721308712172,6.3054682,3493.2,3492.8,0.03554833]
[1721308712380,6.3054682,3493.2,3492.4,0.55]
[1721308712581,2.86286,3493.0,3492.9,0.03550461]
[1721308712877,0.5199963,3493.0,3492.0,5.86367]
[1721308713086,2.86279,3493.1,3492.9,0.03552507]
[1721308713297,2.86279,3493.1,3492.1,0.55]
[1721308713581,2.86279,3493.1,3492.2,0.03583112]
[1721308713790,6.3054682,3493.2,3492.3,2.86342]
[1721308713943,6.3054682,3493.2,3492.5,2.86323]
[1721308714138,6.3054682,3493.2,3492.6,0.03564855]
[1721308714960,6.3054682,3493.2,3492.6,2.89882855]
[1721308715168,6.3054682,3493.2,3492.7,8.77698]
[1721308715409,6.3054682,3493.2,3492.9,2.86289]
[1721308715611,6.2954682,3493.2,3493.0,3.41286]
[1721308715782,6.2954682,3493.2,3493.1,2.86278]
[1721308715981,6.2954682,3493.2,3493.1,6.44826366]
[1721308716391,6.2854682,3493.2,3493.1,6.44826366]
[1721308717673,6.2854682,3493.2,3493.1,3.58548366]
[1721308717902,6.2854682,3493.2,3493.1,3.03548366]
[1721308718093,6.2854682,3493.2,3493.1,0.03548366]
[1721308718909,6.2854682,3493.2,3493.0,0.55]
[1721308719123,6.2854682,3493.2,3493.1,0.03548366]
[1721308719402,6.2854682,3493.2,3493.0,3.41285]
[1721308719586,6.2854682,3493.2,3493.1,3.03548366]
[1721308720201,6.2854682,3493.2,3493.1,0.03548366]
[1721308720413,6.2854682,3493.2,3493.1,3.0]
[1721308720613,6.2854682,3493.2,3493.1,6.44826366]
[1721308721300,6.2854682,3493.2,3493.1,9.31104366]
[1721308723740,6.2854682,3493.2,3493.1,6.44826366]
[1721308724513,6.2854682,3493.2,3493.1,3.58548366]
[1721308725106,6.2854682,3493.2,3493.1,0.03548366]
[1721308725530,6.2854682,3493.2,3493.0,3.0]
[1721308725736,6.2854682,3493.2,3493.1,0.03527659]
[1721308726001,6.2854682,3493.2,3493.0,3.0]
[1721308726203,6.2854682,3493.2,3493.1,0.03530726]
[1721308726407,6.2854682,3493.2,3492.6,3.0]
[1721308726720,6.2854682,3493.2,3493.1,0.03516153]
[1721308727247,6.2854682,3493.2,3492.6,3.0]
[1721308727453,6.2854682,3493.2,3493.1,0.03516153]
[1721308727661,6.2854682,3493.2,3492.6,5.86314]
[1721308727958,6.2854682,3493.2,3492.7,0.55]
[1721308728261,6.2854682,3493.2,3492.8,0.03529267]
[1721308729041,6.2854682,3493.2,3492.8,3.03529267]
[1721308729910,6.2854682,3493.2,3492.8,0.03529267]
[1721308730531,6.2854682,3493.2,3491.9,2.86376]
[1721308730532,2.3755,3492.9,3491.9,2.86376]
[1721308730718,2.3755,3492.9,3491.9,2.86371]
[1721308730916,2.3755,3492.9,3492.0,0.03274491]
[1721308731124,2.3755,3492.9,3492.1,0.05726454]
[1721308731329,9.1481982,3493.2,3492.1,0.05726454]
[1721308731525,6.2854682,3493.2,3492.2,0.09001086]
[1721308731730,6.2854682,3493.2,3492.2,0.0327491]
[1721308731955,6.2854682,3493.2,3492.3,2.86343]
[1721308732249,6.2854682,3493.2,3492.7,2.8631]
[1721308732561,6.2854682,3493.2,3492.8,3.0]
[1721308732761,6.2854682,3493.2,3492.9,2.86293]
[1721308733057,6.2854682,3493.2,3493.0,3.58239567]
[1721308733218,6.2854682,3493.2,3493.1,2.86278]
[1721308733421,6.2854682,3493.2,3493.1,2.89807702]
[1721308734326,6.2854682,3493.2,3493.1,0.03529702]
[1721308734658,6.2854682,3493.2,3493.1,2.86278]
[1721308734831,6.2854682,3493.2,3493.1,3.44807702]
[1721308735034,6.2854682,3493.2,3493.1,0.58529702]
[1721308735238,6.2854682,3493.2,3493.1,0.03529702]
[1721308735434,6.2854682,3493.2,3493.1,2.86278]
[1721308735640,6.2854682,3493.2,3493.1,3.44807702]
[1721308737129,6.2854682,3493.2,3493.1,0.58529702]
[1721308737327,6.2854682,3493.2,3493.1,0.03529702]
[1721308737562,6.2854682,3493.2,3493.0,0.55]
[1721308737770,6.2854682,3493.2,3492.8,3.55]
[1721308737927,6.2854682,3493.2,3492.8,6.41302]
[1721308738121,6.2854682,3493.2,3493.0,2.86285]
[1721308738439,6.2854682,3493.2,3493.1,0.03516409]
[1721308738639,6.2854682,3493.2,3492.8,6.41298]
[1721308738945,6.2854682,3493.2,3492.9,2.86294]
[1721308739147,6.2854682,3493.2,3493.0,3.41286]
[1721308739347,6.2854682,3493.2,3493.0,3.45158858]
[1721308739726,6.2854682,3493.2,3493.1,2.86278]
[1721308740134,6.2854682,3493.2,3493.1,2.9014605]
[1721308740748,6.2854682,3493.2,3493.1,3.4514605]
[1721308741543,6.2854682,3493.2,3493.1,0.5886805]
[1721308741746,6.2854682,3493.2,3493.1,0.0386805]
[1721308742075,6.2854682,3493.2,3493.0,2.86281]
[1721308742381,6.2854682,3493.2,3493.1,3.4514605]
[1721308742888,6.2854682,3493.2,3493.1,0.5886805]
[1721308743191,6.2854682,3493.2,3493.1,0.0386805]
[1721308743537,6.2854682,3493.2,3492.4,2.86331]
[1721308743766,6.2854682,3493.2,3493.1,0.03870016]
[1721308744149,6.2854682,3493.2,3492.5,3.0]
[1721308744661,6.2854682,3493.2,3492.6,0.0389912]
[1721308745148,6.2854682,3493.2,3492.6,2.9021312]
[1721308745354,6.2854682,3493.2,3492.7,2.4664]
[1721308745680,6.2854682,3493.2,3492.9,2.86294]
[1721308745984,6.2854682,3493.2,3493.0,0.58879885]
[1721308746187,6.2854682,3493.2,3493.1,2.86278]
[1721308746390,6.2854682,3493.2,3493.1,3.45153077]
[1721308747274,6.2854682,3493.2,3493.1,0.58875077]
[1721308747678,6.2854682,3493.2,3493.1,3.45153077]
[1721308750893,6.2854682,3493.2,3493.1,6.31431077]
[1721308751562,6.2854682,3493.2,3493.1,0.03875077]
[1721308751758,6.2854682,3493.2,3493.0,3.41281]
[1721308751974,6.2854682,3493.2,3493.1,0.03522797]
[1721308752182,6.2854682,3493.2,3493.0,3.41281]
[1721308752364,6.2854682,3493.2,3493.1,0.03522797]
[1721308752552,6.2854682,3493.2,3493.0,3.41281]
[1721308752751,6.2854682,3493.2,3493.1,0.03522797]
[1721308752968,6.2854682,3493.2,3493.0,3.41281]
[1721308753372,6.2854682,3493.2,3493.1,0.03522797]
[1721308753554,6.2854682,3493.2,3493.0,3.41281]
[1721308753748,6.2854682,3493.2,3493.1,2.89800797]
[1721308755155,6.2854682,3493.2,3493.1,0.03522797]
[1721308755349,6.2854682,3493.2,3493.0,3.41283]
[1721308755786,6.2854682,3493.2,3493.1,0.03522797]
[1721308756155,6.2854682,3493.2,3493.0,3.41283]
[1721308756494,6.2854682,3493.2,3493.1,0.03522797]
[1721308756666,6.2854682,3493.2,3493.1,2.89800797]
[1721308756853,6.2854682,3493.2,3493.1,2.86278]
[1721308757054,6.2854682,3493.2,3493.1,3.44800797]
[1721308758156,6.2854682,3493.2,3493.1,2.89800797]
[1721308760267,6.2854682,3493.2,3493.1,0.03522797]
[1721308760466,6.2854682,3493.2,3493.0,0.55]
[1721308760687,6.2854682,3493.2,3493.1,0.03525356]
[1721308760895,6.2854682,3493.2,3492.5,0.58755198]
[1721308761065,7.16338502,3493.2,3493.1,0.03525356]
[1721308761267,7.16338502,3493.2,3492.3,2.86344]
[1721308761468,6.2854682,3493.2,3492.3,2.86344]
[1721308761681,6.2854682,3493.2,3492.4,2.89593628]
[1721308762095,6.2854682,3493.2,3492.4,0.03259628]
[1721308762388,6.2854682,3493.2,3492.5,0.0325562]
[1721308762389,2.2737,3493.1,3492.5,0.0325562]
[1721308762600,3.41587982,3493.1,3492.2,5.86347]
[1721308762795,2.2737,3493.1,3492.6,0.03251612]
[1721308762956,2.2737,3493.1,3492.2,3.0]
[1721308763158,2.86311,3492.7,3492.3,0.03263637]
[1721308763383,5.28506,3492.4,3492.3,0.03263637]
[1721308763656,5.28506,3492.4,3491.2,2.86428]
[1721308763657,2.86352,3492.2,3491.2,2.86428]
[1721308763858,2.86352,3492.2,3491.0,2.86447]
[1721308764058,2.86352,3492.2,3491.1,2.86442]
[1721308764372,2.86352,3492.2,3491.0,2.86447]
[1721308764373,2.86344,3492.3,3491.2,2.86428]
[1721308764892,2.86344,3492.3,3491.3,2.86425]
[1721308765195,7.21506,3492.4,3491.2,2.86429]
[1721308765395,7.21506,3492.4,3491.3,2.86425]
[1721308766070,2.86344,3492.3,3491.2,2.86429]
[1721308766892,2.86373,3492.0,3490.8,2.86464]
[1721308767100,5.314173,3492.0,3490.8,2.86464]
[1721308767461,1.93,3492.0,3490.8,2.86464]
[1721308767663,2.3407,3492.1,3491.0,2.86444]
[1721308767900,5.20431,3492.1,3490.9,2.86453]
[1721308768057,5.20431,3492.1,3491.1,2.86442]
[1721308768254,5.20431,3492.1,3491.2,0.05728423]
[1721308768255,2.3407,3492.1,3491.2,0.05728423]
[1721308768512,2.3407,3492.1,3490.9,2.4342]
[1721308768513,2.3407,3492.1,3491.4,2.86412]
[1721308768716,2.3407,3492.1,3491.4,2.86415]
[1721308768916,2.3113,3492.7,3491.7,2.86393]
[1721308769118,2.3113,3492.7,3491.4,2.86415]
[1721308769406,2.86333,3492.5,3491.4,2.86415]
[1721308769613,5.17443,3492.7,3491.4,2.86415]
[1721308769906,3.859981,3492.6,3491.4,2.86415]
[1721308770146,3.859981,3492.6,3491.5,2.86409]
[1721308770417,2.2558,3492.5,3491.2,2.86428]
[1721308770572,2.86342,3492.4,3491.3,2.86423]
[1721308770773,2.2558,3492.5,3491.3,2.86423]
[1721308771020,2.2558,3492.5,3491.6,2.864]
[1721308771626,2.2558,3492.5,3491.4,0.55]
[1721308771908,2.4584,3493.0,3491.7,2.8639]
[1721308772112,5.32127,3493.0,3492.0,2.86364]
[1721308773475,2.86296,3492.9,3491.9,2.86376]
[1721308773708,0.532136,3492.8,3491.9,2.86376]
[1721308774410,0.532136,3492.8,3491.6,2.86398]
[1721308774613,0.532136,3492.8,3491.8,2.8638]
[1721308775220,2.86295,3492.9,3491.9,2.86376]
[1721308776490,2.86303,3492.8,3491.7,3.41388]
[1721308777191,1.93,3492.9,3492.0,2.86363]
[1721308777512,2.4584,3493.0,3492.0,2.86363]
[1721308778736,2.4584,3493.0,3492.1,2.86359]
[1721308779729,2.4584,3493.0,3492.7,2.86305]
[1721308779943,6.2854682,3493.2,3492.7,2.86305]
[1721308780104,6.2854682,3493.2,3492.5,2.86326]
[1721308780105,6.2854682,3493.2,3492.8,2.86302]
[1721308780313,6.2854682,3493.2,3492.6,2.86315]
[1721308781302,6.2854682,3493.2,3492.8,2.86298]
[1721308781945,6.2854682,3493.2,3492.5,2.86322]
[1721308782128,6.2854682,3493.2,3493.1,2.86278]
[1721308784756,6.2854682,3493.2,3492.9,2.86292]
[1721308786738,6.2854682,3493.2,3492.9,2.86287]
[1721308787146,6.2854682,3493.2,3492.7,2.86309]
[1721308787359,6.2854682,3493.2,3492.7,5.72615]
[1721308787560,6.2854682,3493.2,3492.7,2.86306]
[1721308788588,6.2854682,3493.2,3492.8,2.86295]
[1721308788934,6.2854682,3493.2,3492.9,2.86293]
[1721308789936,6.2854682,3493.2,3493.0,2.8628]
[1721308790554,6.2854682,3493.2,3492.6,2.86312]
[1721308790741,6.2854682,3493.2,3492.9,2.86292]
[1721308791375,6.2854682,3493.2,3492.7,2.8631]
[1721308792183,6.2854682,3493.2,3492.3,35.0]
[1721308792354,6.2854682,3493.2,3493.1,2.86278]
[1721308792885,6.2854682,3493.2,3493.0,2.86284]
[1721308794086,6.2854682,3493.2,3492.7,2.86309]
[1721308794373,6.2854682,3493.2,3492.4,3.55]
[1721308794374,6.2854682,3493.2,3492.4,3.41329]
[1721308794582,6.2854682,3493.2,3492.5,2.86325]
[1721308795942,6.2854682,3493.2,3492.3,2.86343]
[1721308796144,6.2854682,3493.2,3492.4,3.0]
[1721308796766,9.1482182,3493.2,3492.1,2.86358]
[1721308796972,5.26223,3493.1,3492.2,3.0]
[1721308797139,6.17705182,3493.1,3492.0,5.86364]
[1721308797741,3.31422182,3493.1,3492.2,2.86351]
[1721308798642,6.17701182,3493.1,3492.1,2.8636]
[1721308799675,6.17701182,3493.1,3492.0,3.0]
[1721308799981,1.439248,3493.0,3492.0,5.86363]
[1721308800184,2.86303,3492.8,3491.8,2.86383]
[1721308800692,2.86303,3492.8,3491.8,2.86384]
[1721308801940,2.3994,3492.9,3491.9,2.86376]
[1721308802140,3.7895798,3492.9,3492.0,2.86366]
[1721308802583,3.7895798,3492.9,3491.5,3.0]
[1721308802784,3.7895798,3492.9,3492.1,2.86354]
[1721308802785,2.3994,3492.9,3492.1,2.86354]
[1721308802955,2.3994,3492.9,3492.2,2.86345]
[1721308803151,2.3994,3492.9,3491.9,2.86373]
[1721308803370,5.26236,3492.9,3491.9,2.86373]
[1721308803551,6.70342782,3492.9,3491.9,2.86373]
[1721308804163,2.86308,3492.8,3491.7,2.86392]
[1721308804359,2.86326,3492.6,3491.5,5.86404]
[1721308804567,2.86326,3492.6,3491.6,2.86401]
[1721308804767,0.810122,3492.5,3491.6,2.86401]
[1721308806661,0.810122,3492.5,3491.5,2.86409]
[1721308806991,3.673392,3492.5,3491.2,2.86431]
[1721308807192,3.673392,3492.5,3491.3,3.55]
[1721308807363,2.4768,3492.4,3491.5,2.86409]
[1721308807697,2.4768,3492.4,3491.0,35.0]
[1721308807698,2.4768,3492.2,3491.1,2.86436]
[1721308807890,2.5450192,3492.3,3490.7,5.72943]
[1721308807891,2.4768,3491.8,3490.7,5.72943]
[1721308808096,2.4768,3491.8,3490.5,2.86488]
[1721308808097,2.86401,3491.6,3490.5,2.86488]
[1721308808269,2.334,3491.5,3490.5,2.86488]
[1721308808456,6.004278,3491.5,3490.5,2.86488]
[1721308809300,2.86431,3491.3,3490.2,2.8651]
[1721308809808,2.86435,3491.2,3490.1,2.86521]
[1721308810317,2.86443,3491.1,3489.9,5.73073]
[1721308810476,5.22663,3491.1,3490.0,2.86532]
[1721308810880,2.3622,3491.1,3490.1,2.86521]
[1721308811181,2.3622,3491.1,3490.2,2.86515]
[1721308812284,2.3622,3491.1,3490.0,2.86532]
[1721308813019,2.86452,3491.0,3489.8,2.86547]
[1721308813327,2.86452,3491.0,3489.9,2.8654]
[1721308813493,0.522672,3490.9,3489.9,2.8654]
[1721308813696,2.3754,3490.8,3489.9,2.8654]
[1721308814026,2.3754,3490.8,3489.7,3.0]
[1721308814027,2.86475,3490.7,3489.7,3.0]
[1721308814196,2.3754,3490.6,3489.0,2.8661]
[1721308814411,2.3754,3490.1,3488.9,2.86615]
[1721308814613,2.86536,3490.0,3488.9,2.86615]
[1721308814781,2.86536,3490.0,3488.2,37.86672]
[1721308814782,2.86536,3490.0,3489.0,2.86615]
[1721308814985,2.86536,3490.0,3488.7,2.86639]
[1721308814986,2.86536,3490.0,3488.8,2.86623]
[1721308815334,2.86536,3490.0,3488.7,2.86639]
[1721308815335,5.24681,3489.9,3488.7,2.86639]
[1721308815538,5.24681,3489.9,3488.6,2.86647]
[1721308815539,5.320231,3489.8,3488.6,2.86647]
[1721308815705,5.320231,3489.8,3488.7,2.86637]
[1721308815898,2.86558,3489.7,3488.7,2.86637]
[1721308816231,2.454681,3489.8,3488.8,2.86631]
[1721308816398,2.454681,3489.8,3488.9,2.86621]
[1721308816591,2.454681,3489.8,3488.7,2.86634]
[1721308816592,0.4836081,3489.7,3488.7,2.86634]
[1721308816936,5.24682,3489.9,3488.8,2.86625]
[1721308817146,2.3814,3489.9,3488.8,2.86625]
[1721308817297,5.24682,3489.9,3488.9,2.86622]
[1721308817630,2.3814,3489.9,3488.3,37.3649]
[1721308817841,2.3707,3490.5,3488.5,1.93]
[1721308818009,2.3707,3490.5,3489.1,2.86606]
[1721308818207,2.3707,3490.5,3489.5,2.86566]
[1721308818440,2.3707,3490.5,3490.0,2.86532]
[1721308818825,2.3707,3490.5,3490.0,2.86528]
[1721308819030,2.3707,3491.2,3489.9,2.86537]
[1721308819251,2.3707,3491.2,3490.5,2.86486]
[1721308819409,2.3707,3491.2,3490.3,2.86502]
[1721308819614,2.3707,3491.2,3490.4,2.86499]
[1721308819807,2.3707,3491.2,3490.6,2.86481]
[1721308820211,2.3707,3491.2,3490.2,2.86513]
[1721308820421,2.3707,3491.2,3489.9,2.86538]
[1721308820422,2.3707,3491.2,3490.0,2.8653]
[1721308820714,5.23509,3491.2,3489.9,2.8654]
[1721308820937,4.79448,3491.1,3489.9,2.8654]
[1721308821139,4.79448,3491.1,3489.6,5.86561]
[1721308821140,2.86469,3490.8,3489.6,5.86561]
[1721308821348,2.86469,3490.8,3489.7,2.86554]
[1721308821583,2.86469,3490.8,3489.5,2.86571]
[1721308821584,2.417,3490.6,3489.5,2.86571]
[1721308821826,2.417,3490.6,3489.6,2.86565]
[1721308822115,2.417,3490.6,3489.7,2.86551]
[1721308822750,2.417,3490.6,3489.9,2.86538]
[1721308822953,2.417,3490.6,3489.5,2.86572]
[1721308823257,2.417,3490.6,3489.6,2.86564]
[1721308823561,2.417,3490.6,3489.7,2.86556]
[1721308824257,2.417,3490.6,3489.9,2.86534]
[1721308825263,2.417,3490.6,3490.2,2.86515]
[1721308825489,2.86432,3491.3,3490.2,2.86513]
[1721308825490,5.27076,3491.3,3490.2,2.86513]
[1721308825640,5.27076,3491.3,3490.0,2.86531]
[1721308825641,0.572852,3491.2,3490.0,2.86531]
[1721308825841,0.572852,3491.2,3490.1,2.86524]
[1721308825842,2.86445,3491.1,3490.1,2.86524]
[1721308826036,0.572852,3491.2,3490.2,2.86515]
[1721308826474,0.572852,3491.2,3490.3,2.86507]
[1721308826683,1.3113612,3491.1,3490.0,2.8653]
[1721308826838,1.3113612,3491.1,3490.3,2.86504]
[1721308827040,1.3113612,3491.1,3490.4,2.86499]
[1721308828348,2.4065,3491.3,3490.7,2.86475]
[1721308829095,2.4065,3491.3,3490.5,2.8649]
[1721308829870,2.4065,3491.3,3490.0,2.86524]
[1721308830179,5.27081,3491.3,3490.2,2.86516]
[1721308830399,3.391471,3491.2,3490.0,2.86524]
[1721308830579,3.391471,3491.2,3490.1,2.86524]
[1721308830787,0.527081,3491.2,3490.1,2.86524]
[1721308830988,2.4065,3491.3,3490.1,2.86524]
[1721308831197,2.4065,3491.3,3490.3,2.86507]
[1721308831491,5.27081,3491.3,3490.2,2.86516]
[1721308831799,2.4065,3491.3,3490.3,2.86506]
[1721308831954,2.4065,3491.3,3490.3,2.9198515]
[1721308832869,0.720074,3491.2,3490.4,2.86499]
[1721308833079,2.4065,3491.3,3490.6,2.86477]
[1721308833277,2.4065,3491.3,3489.8,2.86545]
[1721308833278,2.4065,3491.3,3490.7,2.86474]
[1721308833656,2.4065,3491.3,3490.7,2.91965364]
[1721308834509,2.4065,3491.3,3490.7,0.05491364]
[1721308834810,2.64715,3491.3,3490.5,2.86484]
[1721308834967,2.64715,3491.3,3490.8,0.05486178]
[1721308835159,2.64715,3491.3,3490.5,2.86484]
[1721308835477,2.64715,3491.3,3490.6,2.86482]
[1721308835993,2.64715,3491.3,3490.6,2.91974804]
[1721308836999,0.264715,3491.2,3490.6,0.05492804]
[1721308837665,2.4225,3491.8,3490.9,2.86453]
[1721308837964,2.4225,3491.8,3490.6,3.0]
[1721308838194,2.4225,3491.8,3491.0,2.91917621]
[1721308838398,2.4225,3491.8,3491.0,5.72891]
[1721308838698,2.4225,3491.8,3491.3,2.86421]
[1721308838906,2.4225,3491.8,3491.2,2.86428]
[1721308839200,2.4225,3491.8,3491.1,0.11194693]
[1721308839201,2.4225,3492.2,3491.5,2.86402]
[1721308839413,2.4225,3492.2,3490.9,2.86455]
[1721308839414,2.4225,3492.2,3491.3,0.05451818]
[1721308839575,2.4225,3492.2,3491.6,2.91841509]
[1721308839905,2.4225,3492.2,3491.7,0.05438197]
[1721308840715,2.4225,3492.2,3491.3,5.72844]
[1721308840906,2.4225,3492.2,3491.8,0.05434886]
[1721308841132,2.4225,3492.2,3490.9,2.86453]
[1721308841133,2.86369,3492.0,3490.9,2.86453]
[1721308841437,2.86369,3492.0,3490.7,2.86471]
[1721308841438,2.2925,3491.7,3490.7,2.86471]
[1721308841885,2.2925,3491.7,3491.0,2.86443]
[1721308842081,2.2925,3491.7,3491.2,2.86433]
[1721308842280,2.2925,3491.7,3491.0,2.86444]
[1721308842714,2.52175,3491.7,3490.8,2.86463]
[1721308842928,2.52175,3491.7,3490.9,2.86458]
[1721308843095,2.52175,3491.7,3490.8,2.86467]
[1721308843289,2.52175,3491.7,3490.9,2.86457]
[1721308844038,2.2925,3491.7,3490.9,2.86457]
[1721308844387,2.2925,3491.7,3490.8,2.86466]
[1721308844993,2.2925,3491.7,3491.0,2.8645]
[1721308845201,2.2925,3491.7,3490.4,2.86496]
[1721308845416,2.2925,3491.7,3491.0,2.86445]
[1721308846034,2.2925,3491.7,3490.5,3.0]
[1721308846035,2.2925,3491.7,3490.5,5.86488]
[1721308846198,2.2925,3491.7,3491.1,2.86437]
[1721308846521,2.2925,3491.7,3490.7,3.0]
[1721308846826,2.2925,3491.7,3490.8,2.86465]
[1721308846988,2.2925,3491.7,3490.9,3.0]
[1721308847499,2.2925,3491.7,3491.0,0.05457447]
[1721308847709,3.094503,3491.7,3491.0,0.05457447]
[1721308847917,3.094503,3491.7,3490.4,2.86495]
[1721308847918,2.86411,3491.5,3490.5,2.86491]
[1721308848723,2.86411,3491.5,3490.6,0.05457962]
[1721308849446,2.86411,3491.5,3490.6,3.05457962]
[1721308849589,2.86411,3491.5,3490.6,0.05457962]
[1721308849791,0.5958613,3491.4,3490.6,3.05457962]
[1721308850038,0.5958613,3491.4,3490.6,0.05457962]
[1721308850213,2.8644,3491.2,3490.6,0.05457962]
[1721308850399,2.8644,3491.2,3490.2,3.0]
[1721308850606,2.8644,3491.2,3490.1,2.86517]
[1721308850607,2.86467,3490.8,3490.7,0.05278836]
[1721308850926,1.93,3491.2,3489.5,0.58755198]
[1721308850927,2.4967,3490.6,3489.7,2.86556]
[1721308851142,5.36154,3490.6,3489.5,2.8657]
[1721308851430,2.86494,3490.5,3489.5,2.8657]
[1721308851988,2.4967,3490.6,3489.5,2.8657]
[1721308852491,2.4967,3490.6,3489.6,3.0]
[1721308852698,2.4967,3490.6,3489.7,2.86552]
[1721308853315,3.343881,3491.1,3490.2,2.86511]
[1721308853316,2.2845,3491.0,3490.2,2.86511]
[1721308853485,2.2845,3491.0,3490.0,2.86526]